bitfinex/quotes_SOLUSD_20241126
["timestamp","ask_amount","ask_price","bid_price","bid_amount"]
[1732580409531,12.81169345,236.67,236.6,4.2265]
[1732580409829,12.81169345,236.67,236.6,17.03819345]
[1732580410217,10.0,236.59,236.39,0.4905976]
[1732580410530,12.81169345,236.48,236.4,4.2301]
[1732580410739,12.81169345,236.46,236.4,4.2301]
[1732580410910,12.81169345,236.42,236.39,0.4905976]
[1732580411106,12.81169345,236.4,236.39,0.4905976]
[1732580411429,12.81169345,236.4,236.31,10.579]
[1732580411430,12.81169345,236.4,236.31,4.2317]
[1732580411959,12.81169345,236.42,236.32,12.81169345]
[1732580412432,134.5,236.48,236.36,12.81169345]
[1732580412433,12.81169345,236.44,236.36,12.81169345]
[1732580412612,12.81169345,236.48,236.4,12.81169345]
[1732580412807,12.81169345,236.5,236.4,12.81169345]
[1732580413009,12.81169345,236.5,236.41,4.2299]
[1732580413210,12.81169345,236.48,236.41,4.2299]
[1732580413529,12.81169345,236.46,236.41,4.2299]
[1732580414026,12.81169345,236.48,236.41,4.2299]
[1732580414427,20.63338527,236.45,236.35,20.63338527]
[1732580414622,20.63338527,236.43,236.35,20.63338527]
[1732580414826,20.63338527,236.45,236.37,20.63338527]
[1732580415012,20.63338527,236.47,236.39,20.63338527]
[1732580415218,20.63338527,236.47,236.35,20.0]
[1732580415219,20.63338527,236.47,236.37,20.63338527]
[1732580415427,20.63338527,236.43,236.35,20.63338527]
[1732580415620,20.63338527,236.41,236.33,20.63338527]
[1732580415822,20.63338527,236.43,236.35,20.63338527]
[1732580416023,20.63338527,236.45,236.37,20.63338527]
[1732580416335,20.63338527,236.47,236.37,20.63338527]
[1732580417047,3.3821,236.54,236.28,21.2678755]
[1732580417048,20.63338527,236.57,236.45,20.63338527]
[1732580417216,20.63338527,236.59,236.5,20.63338527]
[1732580417520,20.63338527,236.57,236.5,20.63338527]
[1732580417944,20.63338527,236.61,236.52,20.63338527]
[1732580418110,20.63338527,236.61,236.42,0.63419495]
[1732580418111,20.63338527,236.59,236.5,20.63338527]
[1732580418316,20.63338527,236.55,236.48,20.63338527]
[1732580418621,20.63338527,236.57,236.48,20.63338527]
[1732580418942,20.63338527,236.57,236.41,16.0204]
[1732580418943,20.63338527,236.53,236.47,4.2288]
[1732580419315,20.63338527,236.55,236.47,4.2288]
[1732580419526,20.63338527,236.57,236.48,20.63338527]
[1732580419822,20.63338527,236.55,236.48,20.63238527]
[1732580420042,20.63338527,236.53,236.47,4.2288]
[1732580420240,20.63338527,236.49,236.4,20.63338527]
[1732580420737,20.63338527,236.47,236.39,4.2302]
[1732580420957,20.63338527,236.49,236.4,20.63338527]
[1732580421238,26.79648527,236.51,236.42,20.63338527]
[1732580421735,20.63338527,236.51,236.44,20.63338527]
[1732580422039,20.63338527,236.53,236.46,20.63338527]
[1732580423013,20.63338527,236.53,236.47,4.2288]
[1732580423214,20.63338527,236.55,236.47,4.2288]
[1732580423642,20.63338527,236.53,236.44,20.63338527]
[1732580423935,20.63338527,236.49,236.4,20.63338527]
[1732580424141,20.63338527,236.45,236.39,4.2302]
[1732580424318,20.63338527,236.43,236.39,4.2302]
[1732580424519,20.63338527,236.45,236.39,4.2302]
[1732580425227,20.63338527,236.49,236.4,20.63338527]
[1732580425431,20.63338527,236.51,236.42,20.63338527]
[1732580425644,20.63338527,236.49,236.4,20.63338527]
[1732580426342,20.63338527,236.51,236.42,20.63338527]
[1732580426523,20.63338527,236.51,236.43,4.2295]
[1732580427122,20.63338527,236.53,236.44,20.63338527]
[1732580427321,20.63338527,236.51,236.43,4.2295]
[1732580429339,20.63338527,236.49,236.43,4.2295]
[1732580429550,20.63338527,236.47,236.39,4.2302]
[1732580430641,20.63338527,236.45,236.39,4.2302]
[1732580431252,20.63338527,236.43,236.37,4.2305]
[1732580431552,20.63338527,236.45,236.37,4.2305]
[1732580432051,20.63338527,236.41,236.32,24.86488527]
[1732580433637,20.63338527,236.37,236.3,24.86508527]
[1732580433841,20.63338527,236.41,236.32,20.63338527]
[1732580434252,20.63338527,236.43,236.36,20.63338527]
[1732580434491,20.63338527,236.43,236.37,4.2306]
[1732580434933,43.66398527,236.45,236.37,4.2306]
[1732580435340,20.63338527,236.43,236.37,4.2306]
[1732580435646,20.63338527,236.41,236.33,4.2313]
[1732580435852,20.63338527,236.39,236.33,4.2313]
[1732580436358,20.63338527,236.4,236.33,4.2313]
[1732580436953,20.63338527,236.4,236.35,10.0]
[1732580437153,20.63338527,236.4,236.32,10.0]
[1732580437338,134.5,236.44,236.31,14.2316]
[1732580437339,20.63338527,236.38,236.31,14.2316]
[1732580437541,20.63338527,236.35,236.29,4.232]
[1732580437750,20.63338527,236.35,236.31,10.0]
[1732580437946,20.63338527,236.37,236.31,10.0]
[1732580438250,20.63338527,236.35,236.27,10.0]
[1732580438451,20.63338527,236.33,236.27,10.0]
[1732580438872,20.63338527,236.35,236.3,10.0]
[1732580439948,20.63338527,236.33,236.25,20.0]
[1732580440144,20.63338527,236.31,236.25,24.2326]
[1732580440950,20.63338527,236.31,236.25,20.0]
[1732580441160,20.63338527,236.31,236.25,10.0]
[1732580441661,20.63338527,236.31,236.25,20.0]
[1732580441863,20.63338527,236.31,236.25,10.0]
[1732580442063,20.63338527,236.31,236.25,20.0]
[1732580442277,20.63338527,236.31,236.25,14.2327]
[1732580442467,20.63338527,236.31,236.25,10.0]
[1732580442775,20.63338527,236.31,236.25,24.2327]
[1732580443572,20.63338527,236.31,236.25,14.2327]
[1732580443955,20.63338527,236.31,236.25,24.2327]
[1732580444169,20.63338527,236.33,236.26,10.0]
[1732580444383,20.63338527,236.33,236.25,14.2327]
[1732580444876,20.63338527,236.33,236.25,24.2327]
[1732580445053,20.63338527,236.33,236.25,10.0]
[1732580445258,20.63338527,236.31,236.23,10.0]
[1732580445448,20.63338527,236.31,236.25,10.0]
[1732580445652,20.63338527,236.29,236.25,10.0]
[1732580445955,20.63338527,236.29,236.23,14.2331]
[1732580446271,20.63338527,236.25,236.19,4.2337]
[1732580446659,20.63338527,236.27,236.25,10.0]
[1732580446862,20.63338527,236.29,236.23,10.0]
[1732580447478,20.63338527,236.29,236.24,4.2329]
[1732580447981,20.63338527,236.25,236.21,10.0]
[1732580448979,20.63338527,236.25,236.21,14.2334]
[1732580450066,20.63338527,236.29,236.23,10.0]
[1732580450274,20.63338527,236.29,236.21,24.2334]
[1732580450666,20.63338527,236.27,236.21,14.2334]
[1732580450860,20.63338527,236.27,236.21,24.2334]
[1732580451078,20.63338527,236.31,236.26,20.0]
[1732580451285,20.63338527,236.37,236.31,10.0]
[1732580451464,20.63338527,236.35,236.31,4.2317]
[1732580451663,20.63338527,236.35,236.29,14.2319]
[1732580451881,20.63338527,236.35,236.29,4.2319]
[1732580452581,20.63338527,236.35,236.31,10.0]
[1732580452770,20.63338527,236.37,236.31,10.0]
[1732580453983,20.63338527,236.35,236.29,4.2319]
[1732580454189,20.63338527,236.33,236.27,14.2322]
[1732580454485,20.63338527,236.33,236.28,10.0]
[1732580454685,20.63338527,236.33,236.27,14.2323]
[1732580454884,20.63338527,236.29,236.23,4.233]
[1732580455071,3.3849,236.34,236.23,14.233]
[1732580455072,20.63338527,236.31,236.23,14.233]
[1732580455272,20.63338527,236.29,236.23,14.233]
[1732580455483,20.63338527,236.29,236.23,24.233]
[1732580455688,134.5,236.37,236.27,10.0]
[1732580455689,20.63338527,236.31,236.27,10.0]
[1732580455884,20.63338527,236.33,236.27,10.0]
[1732580456181,20.63338527,236.33,236.27,20.0]
[1732580456581,20.63338527,236.33,236.29,10.0]
[1732580456781,20.63338527,236.33,236.27,10.0]
[1732580457009,20.63338527,236.31,236.24,4.2328]
[1732580457371,20.63338527,236.29,236.22,4.2331]
[1732580457573,20.63338527,236.29,236.23,20.0]
[1732580457767,20.63338527,236.31,236.23,20.0]
[1732580458265,20.63338527,236.31,236.26,10.0]
[1732580458564,20.63338527,236.35,236.29,10.0]
[1732580458759,134.5,236.4,236.31,10.0]
[1732580458964,40.63338527,236.37,236.31,10.0]
[1732580459983,20.63338527,236.35,236.29,10.0]
[1732580460170,20.0,236.37,236.3,30.63338527]
[1732580460364,20.0,236.37,236.31,10.0]
[1732580460590,40.63338527,236.37,236.31,20.0]
[1732580460890,20.0,236.37,236.33,14.2312]
[1732580461267,155.13338527,236.43,236.35,20.0]
[1732580461571,20.63338527,236.39,236.31,14.2317]
[1732580461770,20.63338527,236.39,236.31,24.2317]
[1732580461971,20.63338527,236.39,236.31,4.2317]
[1732580462182,20.63338527,236.34,236.27,20.0]
[1732580462385,20.63338527,236.32,236.27,10.0]
[1732580462900,20.63338527,236.34,236.28,10.0]
[1732580463193,155.13338527,236.42,236.34,10.0]
[1732580463400,155.13338527,236.42,236.33,10.0]
[1732580463401,20.63338527,236.46,236.38,20.63338527]
[1732580463688,6.3625,236.53,236.38,20.63338527]
[1732580463689,20.63338527,236.48,236.41,10.0]
[1732580463893,20.63338527,236.48,236.4,10.0]
[1732580464265,20.63338527,236.42,236.37,10.0]
[1732580464472,20.63338527,236.44,236.37,10.0]
[1732580464670,20.63338527,236.44,236.39,10.0]
[1732580465197,20.63338527,236.44,236.36,10.0]
[1732580465374,20.63338527,236.44,236.39,10.0]
[1732580465568,20.63338527,236.46,236.39,10.0]
[1732580466094,14.8182,236.53,236.35,4.2309]
[1732580466095,20.63338527,236.52,236.46,10.0]
[1732580466392,20.63338527,236.56,236.5,10.0]
[1732580466581,20.63338527,236.54,236.47,10.0]
[1732580466783,20.63338527,236.51,236.42,40.63338527]
[1732580466984,20.63338527,236.49,236.42,20.0]
[1732580467188,0.12549,236.53,236.38,20.63338527]
[1732580467189,3.3832,236.46,236.38,20.63338527]
[1732580467401,20.63338527,236.43,236.35,10.0]
[1732580467580,20.63338527,236.37,236.31,20.0]
[1732580467783,20.63338527,236.37,236.31,10.0]
[1732580467994,20.63338527,236.37,236.31,20.0]
[1732580468195,20.63338527,236.46,236.4,10.0]
[1732580468372,20.63338527,236.5,236.42,30.63338527]
[1732580468578,24.01578527,236.52,236.44,40.63338527]
[1732580468800,20.63338527,236.54,236.48,10.0]
[1732580469097,24.01548527,236.54,236.46,10.0]
[1732580469268,20.63338527,236.54,236.48,10.0]
[1732580469474,20.63338527,236.54,236.47,10.0]
[1732580469674,20.63338527,236.56,236.52,10.0]
[1732580469972,3.3814,236.59,236.52,10.0]
[1732580469973,20.63338527,236.58,236.52,10.0]
[1732580470286,20.63338527,236.54,236.47,10.0]
[1732580470598,0.12549,236.57,236.36,10.5766]
[1732580470599,20.63338527,236.52,236.45,10.0]
[1732580470979,20.63338527,236.54,236.47,10.0]
[1732580471374,20.63338527,236.54,236.48,10.0]
[1732580471594,20.63338527,236.56,236.49,10.0]
[1732580471792,20.63338527,236.56,236.46,30.63338527]
[1732580471979,20.63338527,236.54,236.44,30.63338527]
[1732580472178,20.63338527,236.56,236.5,10.0]
[1732580472385,3.3816,236.58,236.52,10.0]
[1732580472386,20.0,236.55,236.52,10.0]
[1732580472583,20.0,236.55,236.5,10.0]
[1732580472886,20.0,236.55,236.51,10.0]
[1732580473090,20.0,236.55,236.48,30.63338527]
[1732580473286,20.0,236.55,236.46,30.63338527]
[1732580473489,20.63338527,236.54,236.46,20.63338527]
[1732580473683,20.63338527,236.52,236.47,10.0]
[1732580473880,20.63338527,236.54,236.47,10.0]
[1732580474099,3.382,236.55,236.47,10.0]
[1732580474593,3.382,236.55,236.49,10.0]
[1732580474999,20.0,236.56,236.51,10.0]
[1732580475202,20.0,236.55,236.51,10.0]
[1732580475400,20.0,236.55,236.48,10.0]
[1732580475580,0.12549,236.55,236.46,20.63338527]
[1732580475778,20.63338527,236.52,236.45,10.0]
[1732580476305,20.63338527,236.48,236.43,10.0]
[1732580476490,20.63338527,236.48,236.41,14.2298]
[1732580476491,20.63338527,236.48,236.41,10.0]
[1732580476802,3.3833,236.45,236.38,30.63338527]
[1732580477010,3.3833,236.45,236.38,10.0]
[1732580477684,20.63338527,236.46,236.41,10.0]
[1732580478208,134.5,236.5,236.44,20.0]
[1732580478395,20.0,236.49,236.44,20.0]
[1732580478595,24.01578527,236.52,236.46,10.0]
[1732580478790,20.0,236.49,236.44,20.0]
[1732580479013,20.63338527,236.48,236.4,20.0]
[1732580479179,20.63338527,236.48,236.43,10.0]
[1732580479545,20.63338527,236.5,236.41,20.0]
[1732580479714,3.3822,236.53,236.39,10.0]
[1732580479715,0.12549,236.45,236.39,10.0]
[1732580480004,20.63338527,236.46,236.39,10.0]
[1732580480211,40.63338527,236.5,236.42,10.0]
[1732580480512,20.63338527,236.46,236.4,10.0]
[1732580480683,20.63338527,236.48,236.4,10.0]
[1732580481013,0.12549,236.52,236.42,10.0]
[1732580481181,31.9799,236.6,236.5,10.0]
[1732580481182,30.50428527,236.57,236.5,10.0]
[1732580481385,15.0733,236.6,236.42,4.2296]
[1732580481386,18.4546,236.6,236.52,30.63338527]
[1732580481582,18.4546,236.6,236.54,10.0]
[1732580481804,20.63338527,236.61,236.54,10.0]
[1732580482818,24.01448527,236.61,236.54,10.0]
[1732580483694,20.63338527,236.63,236.55,20.0]
[1732580483906,20.63338527,236.63,236.58,10.0]
[1732580484404,6.87493487,236.66,236.62,10.0]
[1732580484605,10.25533487,236.66,236.6,10.0]
[1732580484906,24.01388527,236.65,236.57,10.0]
[1732580485110,20.63338527,236.63,236.56,20.63338527]
[1732580485405,20.63338527,236.63,236.58,10.0]
[1732580487688,20.63338527,236.65,236.61,10.0]
[1732580487887,10.25533487,236.66,236.59,10.0]
[1732580488087,0.12549,236.64,236.59,10.0]
[1732580488291,20.63338527,236.65,236.56,30.63338527]
[1732580488292,20.63338527,236.65,236.58,10.0]
[1732580488708,10.25533487,236.66,236.6,10.0]
[1732580488884,10.25533487,236.66,236.58,30.63338527]
[1732580488885,30.88872014,236.66,236.58,30.63338527]
[1732580489090,20.63338527,236.64,236.58,10.0]
[1732580489787,27.50832014,236.66,236.62,10.0]
[1732580490313,30.88872014,236.66,236.62,10.0]
[1732580490604,30.88872014,236.66,236.58,30.63338527]
[1732580490605,30.88872014,236.66,236.6,10.0]
[1732580491506,20.63338527,236.62,236.56,10.0]
[1732580491705,20.63338527,236.6,236.52,40.63338527]
[1732580492507,20.63338527,236.58,236.52,20.0]
[1732580492705,20.63338527,236.58,236.52,10.0]
[1732580493398,20.63338527,236.58,236.52,20.0]
[1732580493714,3.3816,236.58,236.54,10.0]
[1732580493898,20.0,236.6,236.56,10.0]
[1732580494994,0.12549,236.59,236.52,30.63338527]
[1732580495300,20.63338527,236.56,236.51,10.0]
[1732580495506,24.01518527,236.56,236.51,10.0]
[1732580496514,0.12549,236.53,236.47,10.0]
[1732580496819,20.63338527,236.52,236.44,30.63338527]
[1732580497113,24.01538527,236.54,236.45,10.0]
[1732580497308,20.63338527,236.52,236.45,10.0]
[1732580497706,20.63338527,236.52,236.44,20.63338527]
[1732580498017,20.63338527,236.52,236.47,10.0]
[1732580498597,0.12549,236.53,236.47,10.0]
[1732580498800,20.63338527,236.56,236.49,10.0]
[1732580498999,3.3819,236.56,236.51,10.0]
[1732580499223,20.0,236.55,236.51,10.0]
[1732580500291,23.3819,236.55,236.5,10.0]
[1732580500497,3.3819,236.55,236.49,10.0]
[1732580500808,20.63338527,236.52,236.45,20.0]
[1732580500997,20.63338527,236.52,236.45,10.0]
[1732580501194,20.0,236.52,236.48,10.0]
[1732580501394,20.0,236.51,236.45,10.0]
[1732580501994,20.0,236.51,236.47,10.0]
[1732580502199,23.3825,236.51,236.47,10.0]
[1732580502399,23.3825,236.51,236.48,10.0]
[1732580503123,155.13338527,236.58,236.52,10.0]
[1732580503424,20.63338527,236.58,236.52,10.0]
[1732580503622,0.12549,236.55,236.48,10.0]
[1732580503796,0.12549,236.53,236.48,10.0]
[1732580504313,3.3822,236.53,236.48,10.0]
[1732580504625,3.3822,236.53,236.5,10.0]
[1732580504807,3.3822,236.53,236.46,30.63338527]
[1732580505324,3.3822,236.53,236.48,10.0]
[1732580505527,3.3822,236.53,236.46,10.0]
[1732580505702,20.63338527,236.52,236.46,10.0]
[1732580506221,3.3822,236.53,236.48,10.0]
[1732580506423,3.3822,236.53,236.46,10.0]
[1732580507627,3.3822,236.53,236.48,10.0]
[1732580508001,3.3822,236.53,236.46,10.0]
[1732580508398,0.12549,236.52,236.46,10.0]
[1732580508611,20.63338527,236.5,236.44,10.0]
[1732580508807,20.63338527,236.5,236.42,20.0]
[1732580509023,20.63338527,236.48,236.42,10.0]
[1732580509233,20.63338527,236.44,236.37,10.0]
[1732580509819,6.2208,236.49,236.35,10.0]
[1732580509820,20.63338527,236.42,236.35,10.0]
[1732580510125,20.63338527,236.42,236.37,10.0]
[1732580510429,20.63338527,236.42,236.33,40.63338527]
[1732580510730,3.3839,236.41,236.33,40.63338527]
[1732580511624,3.3839,236.41,236.33,20.0]
[1732580511625,20.75887527,236.4,236.33,20.0]
[1732580512133,3.3839,236.41,236.36,10.0]
[1732580512520,20.63338527,236.46,236.41,10.0]
[1732580512926,155.13338527,236.48,236.43,10.0]
[1732580513111,20.63338527,236.5,236.45,10.0]
[1732580514940,3.3828,236.49,236.45,10.0]
[1732580515607,20.63338527,236.52,236.47,10.0]
[1732580515805,20.63338527,236.5,236.43,10.0]
[1732580516434,137.882,236.55,236.48,10.0]
[1732580516639,24.01538527,236.55,236.48,10.0]
[1732580516934,0.12549,236.54,236.48,10.0]
[1732580517114,24.01538527,236.55,236.48,20.0]
[1732580517440,0.12549,236.54,236.48,20.0]
[1732580517628,3.50769,236.54,236.48,20.0]
[1732580518030,20.63338527,236.53,236.48,10.0]
[1732580518217,20.63338527,236.53,236.46,20.0]
[1732580519436,20.63338527,236.53,236.48,20.0]
[1732580519820,24.01558527,236.53,236.48,10.0]
[1732580520123,24.01558527,236.53,236.44,10.0]
[1732580520124,20.63338527,236.49,236.44,10.0]
[1732580520328,12.89809615,236.47,236.43,10.0]
[1732580520520,12.89809615,236.47,236.42,10.0]
[1732580521336,12.89809615,236.47,236.41,10.0]
[1732580521743,3.3832,236.46,236.41,10.0]
[1732580522035,3.3832,236.46,236.42,10.0]
[1732580522244,13.02358615,236.45,236.41,10.0]
[1732580522447,20.64365816,236.42,236.36,10.0]
[1732580522745,20.64365816,236.44,236.38,10.0]
[1732580523042,134.5,236.45,236.4,10.0]
[1732580523418,134.5,236.45,236.36,4.2307]
[1732580523419,134.5,236.51,236.46,20.0]
[1732580523616,15.6084,236.56,236.5,10.0]
[1732580523617,20.64365816,236.56,236.5,10.0]
[1732580523838,20.64365816,236.58,236.5,20.0]
[1732580524028,20.64365816,236.58,236.52,20.0]
[1732580524210,3.3818,236.56,236.52,10.0]
[1732580524587,24.02545816,236.56,236.52,10.0]
[1732580525124,24.02545816,236.56,236.49,10.0]
[1732580525125,15.3031941,236.54,236.5,10.0]
[1732580525330,11.9210941,236.54,236.51,10.0]
[1732580525639,11.9210941,236.54,236.49,10.0]
[1732580525640,15.3031941,236.54,236.49,10.0]
[1732580525941,11.9210941,236.54,236.51,10.0]
[1732580526535,11.9210941,236.54,236.53,10.0]
[1732580529027,11.9210941,236.54,236.53,33.776884]
[1732580529637,11.9210941,236.54,236.53,10.0]
[1732580529838,11.9210941,236.54,236.53,33.776884]
[1732580530152,11.9210941,236.54,236.53,10.0]
[1732580530556,11.9210941,236.54,236.53,33.776884]
[1732580531427,11.9210941,236.54,236.53,10.0]
[1732580533160,11.9210941,236.54,236.53,34.027864]
[1732580533836,11.9210941,236.54,236.53,59.428764]
[1732580534031,20.64365816,236.7,236.65,10.0]
[1732580534235,20.64365816,236.68,236.65,10.0]
[1732580534729,20.64365816,236.68,236.62,20.0]
[1732580534730,24.02375816,236.68,236.62,20.0]
[1732580535059,24.02375816,236.68,236.6,20.64365816]
[1732580535060,20.64365816,236.64,236.6,10.0]
[1732580535353,20.64365816,236.66,236.63,10.0]
[1732580535527,24.02375816,236.68,236.65,10.0]
[1732580536436,24.02375816,236.68,236.6,20.64365816]
[1732580536437,24.02375816,236.68,236.63,10.0]
[1732580537139,20.64365816,236.66,236.61,10.0]
[1732580537452,20.64365816,236.64,236.59,10.0]
[1732580538130,20.64365816,236.64,236.61,10.0]
[1732580538353,3.3801,236.68,236.53,15.4009]
[1732580538354,20.64365816,236.67,236.65,10.0]
[1732580538855,3.3803,236.66,236.58,20.0]
[1732580539043,20.64365816,236.65,236.64,10.0]
[1732580539242,20.64365816,236.67,236.64,20.0]
[1732580539954,20.64365816,236.67,236.6,10.0]
[1732580540254,24.02385816,236.67,236.6,10.0]
[1732580540429,24.02385816,236.67,236.64,10.0]
[1732580540626,20.64365816,236.67,236.64,10.0]
[1732580540847,20.64365816,236.71,236.69,10.0]
[1732580542043,24.02335816,236.71,236.68,10.0]
[1732580542554,12.87363839,236.7,236.68,10.0]
[1732580543348,12.87363839,236.74,236.71,10.0]
[1732580543663,28.70728838,236.81,236.71,10.0]
[1732580543664,16.4234,236.81,236.78,10.0]
[1732580543850,12.87363839,236.82,236.8,10.0]
[1732580545458,16.25173839,236.82,236.78,10.0]
[1732580545664,16.25173839,236.82,236.8,10.0]
[1732580545835,12.87363839,236.82,236.8,10.0]
[1732580546038,12.87363839,236.84,236.8,10.0]
[1732580546238,12.87363839,236.84,236.81,10.0]
[1732580546958,12.87363839,236.86,236.82,10.0]
[1732580547162,12.87363839,236.86,236.81,10.0]
[1732580547163,3.3769,236.9,236.87,10.0]
[1732580547537,33.5897755,236.93,236.91,10.0]
[1732580547538,17.1663755,236.93,236.91,10.0]
[1732580547961,12.87363839,236.92,236.89,10.0]
[1732580548355,0.12549,236.91,236.85,10.0]
[1732580548540,20.55951002,236.87,236.84,10.0]
[1732580548741,20.55951002,236.89,236.86,10.0]
[1732580549055,20.55951002,236.91,236.86,10.0]
[1732580549241,40.55951002,236.89,236.87,10.0]
[1732580549443,43.93661002,236.89,236.85,10.0]
[1732580549970,20.55951002,236.91,236.87,20.0]
[1732580550135,41.10248552,236.93,236.91,10.0]
[1732580550490,0.12549,236.92,236.87,10.0]
[1732580550759,17.1663755,236.93,236.92,20.0]
[1732580551843,17.1663755,236.93,236.92,10.0]
[1732580553465,17.1663755,236.93,236.92,20.0]
[1732580554754,17.1663755,236.93,236.92,40.55951002]
[1732580557953,17.1663755,236.93,236.92,40.68500002]
[1732580558160,17.1663755,236.93,236.92,40.55951002]
[1732580560148,17.1663755,236.93,236.92,20.0]
[1732580562568,37.72588552,236.93,236.9,10.0]
[1732580562772,20.55951002,236.91,236.88,20.0]
[1732580562980,37.72588552,236.93,236.9,20.0]
[1732580563159,37.72588552,236.93,236.92,10.0]
[1732580563358,41.10238552,236.93,236.9,20.0]
[1732580563555,37.72588552,236.93,236.92,10.0]
[1732580563882,17.1663755,236.93,236.92,20.0]
[1732580564358,0.4905976,236.98,236.97,10.0]
[1732580564560,0.4905976,236.98,236.97,30.55951002]
[1732580568476,0.4905976,236.98,236.97,10.0]
[1732580569061,0.4905976,236.98,236.97,30.55951002]
[1732580569755,0.4905976,236.98,236.97,10.0]
[1732580571775,0.4905976,236.98,236.97,22.83845018]
[1732580572079,0.4905976,236.98,236.97,10.0]
[1732580574965,0.4905976,236.98,236.97,14.2199]
[1732580577494,0.4905976,236.98,236.97,10.0]
[1732580578090,0.4905976,236.98,236.97,14.2199]
[1732580580181,0.4905976,236.98,236.97,10.0]
[1732580582969,3.8663976,236.98,236.96,10.0]
[1732580583364,3.8663976,236.98,236.95,10.0]
[1732580583565,3.8663976,236.98,236.97,10.0]
[1732580584371,0.4905976,236.98,236.97,20.0]
[1732580584863,0.4905976,236.98,236.97,32.83845018]
[1732580585879,0.4905976,236.98,236.97,37.05835018]
[1732580586688,0.4905976,236.98,236.97,37.18384018]
[1732580587082,0.4905976,236.98,236.97,37.05835018]
[1732580589688,0.4905976,236.98,236.97,32.83845018]
[1732580589895,0.4905976,236.98,236.97,20.0]
[1732580591086,0.4905976,236.98,236.97,32.83845018]
[1732580591468,0.4905976,236.98,236.97,20.0]
[1732580593003,0.4905976,236.98,236.95,32.83845018]
[1732580593288,0.4905976,236.98,236.96,10.0]
[1732580593602,0.4905976,236.98,236.91,12.83845018]
[1732580593603,16.21435018,236.97,236.94,10.0]
[1732580593788,3.3759,236.97,236.94,10.0]
[1732580594099,15.6661976,236.98,236.96,10.0]
[1732580594473,0.4905976,236.98,236.97,10.0]
[1732580595004,0.4905976,236.98,236.96,10.0]
[1732580595307,3.3759,236.97,236.95,10.0]
[1732580595597,0.4905976,236.98,236.96,10.0]
[1732580595773,3.8663976,236.98,236.95,10.0]
[1732580599000,3.8663976,236.98,236.96,10.0]
[1732580599377,0.4905976,236.98,236.96,10.0]
[1732580599680,3.8663976,236.98,236.96,10.0]
[1732580600000,3.8663976,236.98,236.95,10.0]
[1732580600493,12.83845018,236.97,236.92,10.0]
[1732580600875,12.83845018,236.97,236.92,20.0]
[1732580601078,12.83845018,236.97,236.94,10.0]
[1732580601290,12.83845018,236.97,236.94,20.0]
[1732580601696,3.376,236.97,236.94,20.0]
[1732580601897,0.4905976,236.98,236.94,20.0]
[1732580602199,0.4905976,236.98,236.97,10.0]
[1732580602498,0.4905976,236.98,236.97,20.0]
[1732580603209,0.4905976,236.98,236.97,32.83845018]
[1732580604880,0.4905976,236.98,236.97,37.05835018]
[1732580609383,0.4905976,236.98,236.97,60.83523418]
[1732580610977,0.4905976,236.98,236.97,61.08621418]
[1732580611178,18.9068,237.15,237.13,20.0]
[1732580611789,12.83845018,237.14,237.13,10.0]
[1732580612103,15.5334,237.15,237.13,10.0]
[1732580612302,15.5334,237.15,237.14,10.0]
[1732580613077,16.21145018,237.18,237.16,10.0]
[1732580613281,16.21145018,237.18,237.14,20.0]
[1732580613692,16.21145018,237.18,237.17,10.0]
[1732580614680,16.21145018,237.18,237.17,20.0]
[1732580615202,16.21145018,237.18,237.17,10.0]
[1732580615512,16.21145018,237.18,237.13,10.0]
[1732580615708,12.83845018,237.16,237.13,10.0]
[1732580615894,12.83845018,237.14,237.1,20.0]
[1732580616404,12.83845018,237.16,237.13,10.0]
[1732580616578,3.373,237.18,237.17,10.0]